[Event "2nd Serbia Open Masters 2022"]
[Site "Novi Sad"]
[Date "2022.06.28"]
[Round "1.39"]
[White "Pranav Vijay"]
[Black "Markidis, Konstantinos"]
[Result "1-0"]
[ECO "C11"]
[WhiteElo "2265"]
[BlackElo "2259"]
[Annotator "TA"]
[PlyCount "109"]
[EventDate "2022.06.28"]
[EventType "swiss"]
[EventCountry "SRB"]
[SourceTitle "playchess.com"]
[Source "ChessBase"]
[SourceQuality "1"]
[TimeControl "40/5400+30:900+30"]

{[%evp 16,109,8,0,0,0,0,0,0,0,3,0,-4,-37,-4,-17,-11,-50,-42,-37,-37,-53,-39,-87,-87,-79,-50,-109,-111,-107,-52,-66,-69,-78,-81,-208,-226,-217,-153,-152,-91,-104,0,-104,-111,-152,-144,-150,-131,-123,-110,-95,-7,-2,0,0,0,-26,-24,-28,0,0,0,0,0,-22,44,52,56,37,43,44,37,44,56,47,113,64,58,0,60,66,54,51,62,0,0,0,493,379,972,918,855,856,29992,29993]} 1. e4 {[%emt 0:00:06]} e6 {[%emt 0:00:11]} 2. d4 {[%emt 0:00:06]} d5 {[%emt 0:00:11]} 3. Nc3 {[%emt 0:00:04]} Nf6 {[%emt 0:00:32]} 4. e5 {[%emt 0:00:15]} Nfd7 {[%emt 0:00:08]} 5. f4 {[%emt 0:00:07]} c5 {[%emt 0:00:25]} 6. Nf3 {[%emt 0:00:05]} Nc6 {[%emt 0:00:26]} 7. Be3 {[%emt 0:00:07]} Be7 {[%emt 0:01:08]} 8. Qd2 {[%emt 0:00:39]} a6 {[%emt 0:00:18]} 9. Be2 {[%emt 0:02:23]} O-O {[%emt 0:02:06] C11: French: Classical System: 4 e5 and 4 Bg5 dxe4.} 10. O-O {[%emt 0:01:12]} b5 {[%emt 0:05:39]} 11. Nd1 {[%emt 0:03:10]} b4 {[%emt 0:07:01] The position is equal.} 12. c3 {[%emt 0:06:45]} a5 {[%emt 0:06:45]} 13. Nf2 {[%emt 0:02:45]} Ba6 {[%emt 0:05:17]} 14. g4 {[%emt 0:03:00]} bxc3 {[%emt 0:04:06]} 15. bxc3 {[%emt 0:00:11]} cxd4 {[%emt 0:03:03]} 16. cxd4 {[%emt 0:00:29]} Nb6 {[%emt 0:11:35]} 17. Bxa6 {[%emt 0:04:14]} Rxa6 {[%emt 0:00:06]} 18. Qe2 {[%emt 0:00:14]} Nc4 {[%emt 0:02:05] [#]} 19. Bc1 $146 {[%emt 0:01:48]} (19. Nd2 $15 {was preferrable.}) ({Predecessor:} 19. Nd3 Nb4 20. Bf2 Nxd3 21. Qxd3 Qb8 22. f5 Rc6 23. f6 gxf6 24. Bh4 Qd8 25. exf6 Bxf6 {0-1 (42) Eric,J (2276)-Pastar,S (2374) Belgrade 2021}) 19... Qb6 $17 {[%emt 0:06:30]} 20. Rd1 {[%emt 0:00:33]} Raa8 {[%emt 0:09:53]} 21. h4 {[%emt 0:03:49]} (21. Kh1 $15) 21... Rab8 {[%emt 0:11:09]} 22. h5 {[%emt 0:01:02]} Rfe8 {[%emt 0:00:35]} (22... a4 $17 23. f5 Rfc8) 23. h6 {[%emt 0:02:10]} g6 {[%emt 0:00:26]} 24. f5 {[%emt 0:01:06]} a4 {[%emt 0:04:18][%cal Ba5a4,Ba4a3][%mdl 32]} 25. Bf4 {[%emt 0:03:31] [#]} (25. Kh1 $17) 25... Qa7 $1 $19 {[%emt 0:02:54]} (25... exf5 26. gxf5 Rb7 27. Ng4 $11) 26. Bc1 {[%emt 0:25:01] [#]} a3 $1 {[%emt 0:00:17]} (26... gxf5 27. gxf5 Kh8 28. Kh1 $17) 27. Kg2 {[%emt 0:04:20]} Rb4 {[%emt 0:01:13]} (27... Rb7 $142 28. Kh1 Nb2) 28. Nd3 $17 {[%emt 0:01:00]} Rbb8 {[%emt 0:02:10]} (28... Rb7 $17 29. Qf2 Rbb8) 29. Qf2 {[%emt 0:00:18]} (29. Nf2 $1 $11 {was the only way to keep the balance.}) 29... Qd7 {[%emt 0:01:03]} (29... gxf5 30. gxf5 Kh8 31. Kh1 $15 (31. Qg3 $2 Rg8 $19)) 30. Ng5 {[%emt 0:04:57]} exf5 {[%emt 0:02:55]} 31. gxf5 {[%emt 0:00:10] Black must now prevent e6.} Qxf5 {[%emt 0:00:49]} 32. Qxf5 {[%emt 0:00:55]} gxf5 {[%emt 0:00:07]} 33. Nf3 {[%emt 0:00:12]} Nb4 {[%emt 0:00:18]} (33... Kh8 $17 {Threatens to win with ...Rg8+.} 34. Rg1 Rg8+ 35. Kf2 Rg4) 34. Nxb4 $1 $11 {[%emt 0:01:31]} Rxb4 {[%emt 0:00:15]} 35. Kh3 {[%emt 0:01:07]} Rb6 {[%emt 0:05:58]} 36. Bf4 {[%emt 0:01:45]} Rg6 {[%emt 0:01:24]} 37. Rg1 {[%emt 0:00:22]} Rb8 {[%emt 0:02:09]} 38. Rxg6+ {[%emt 0:04:22]} fxg6 {[%emt 0:00:21]} 39. Bg5 $1 {[%emt 0:00:08]} Bf8 {[%emt 0:04:14]} 40. Re1 $1 {[%emt 0:00:00]} Rb7 {[%emt 0:00:00]} (40... Rc8 $11) 41. e6 $14 {[%emt 0:03:15]} Be7 {[%emt 0:00:32]} 42. Bxe7 {[%emt 0:00:15]} Rxe7 {[%emt 0:00:06][%mdl 4096] Endgame KRN-KRN} 43. Kg3 {[%emt 0:00:40]} Kf8 {[%emt 0:05:55]} 44. Kf4 {[%emt 0:03:12][%mdl 1024] White has compensation.} Rb7 {[%emt 0:04:24]} 45. Ng5 {[%emt 0:02:34]} Nb2 {[%emt 0:01:35]} (45... Ke8 $1 $14) 46. Re2 {[%emt 0:04:20] White is more active.} (46. e7+ $6 Rxe7 47. Rxe7 Kxe7 48. Nxh7 Nd3+ 49. Ke3 Nc1 $11) (46. Re3 $16 Nc4 47. e7+ Rxe7 48. Rb3 (48. Rxe7 Kxe7 49. Nxh7 Nd6 $17)) 46... Nc4 {[%emt 0:00:44]} 47. Kf3 {[%emt 0:00:29]} ({Inferior is} 47. e7+ Rxe7 48. Rxe7 Kxe7 49. Nxh7 Nd6 $17) (47. Rh2 $14) 47... Ke8 {[%emt 0:00:44]} ({Black should play} 47... Nd6 $11) 48. Re1 $1 {[%emt 0:01:40]} Nd6 {[%emt 0:01:42]} 49. Kf4 {[%emt 0:03:07] And now Ke5 would win.} Nc4 {[%emt 0:00:52]} 50. Nxh7 {[%emt 0:05:15]} Rxh7 $11 {[%emt 0:01:11]} 51. Kg5 {[%emt 0:00:01]} Rb7 {[%emt 0:02:15][%mdl 8192] Against Rb1} (51... Rh8 $11 {and Black is okay.}) 52. Kxg6 {[%emt 0:01:43]} Rb2 $2 {[%emt 0:00:36]} (52... Rb8 53. Kf6 Rb7) 53. Rh1 $18 {[%emt 0:01:57] White wants to mate with h7.} Rg2+ {[%emt 0:00:35]} 54. Kf6 {[%emt 0:00:27] Threatening mate with h7.} Nd6 {[%emt 0:00:43]} 55. h7 {[%emt 0:18:06] White used his chance.  Weighted Error Value: White=0.16 (very precise) /Black=0.47} 1-0

[Event "2nd Serbia Open Masters 2022"]
[Site "Novi Sad"]
[Date "2022.06.28"]
[Round "1.40"]
[White "Krasteva, Beloslava"]
[Black "Karthik Venkataraman"]
[Result "1/2-1/2"]
[ECO "E48"]
[WhiteElo "2268"]
[BlackElo "2480"]
[Annotator "TA"]
[PlyCount "103"]
[EventDate "2022.06.28"]
[EventType "swiss"]
[EventCountry "SRB"]
[SourceTitle "playchess.com"]
[Source "ChessBase"]
[SourceQuality "1"]
[TimeControl "40/5400+30:900+30"]

{[%evp 15,103,-3,0,-14,0,0,0,-7,20,20,39,29,30,31,35,21,32,10,35,25,47,34,46,25,28,19,24,29,36,36,109,27,110,91,144,173,181,177,170,156,169,116,122,110,116,118,144,156,139,146,139,95,104,94,83,0,0,0,8,15,16,-11,-11,-10,-16,-21,-23,-21,-21,-32,-8,-8,-8,-8,-8,-13,0,0,0,0,0,-8,-8,-8,-8,-8,-8,-8,-8,-8]} 1. d4 {[%emt 0:00:05]} Nf6 {[%emt 0:00:10]} 2. c4 {[%emt 0:00:05]} e6 {[%emt 0:00:06]} 3. Nc3 {[%emt 0:00:14]} Bb4 {[%emt 0:00:06]} 4. e3 {[%emt 0:00:35]} O-O {[%emt 0:00:08]} 5. Bd3 {[%emt 0:00:18]} d5 {[%emt 0:00:07]} 6. cxd5 {[%emt 0:00:11]} exd5 {[%emt 0:00:06]} 7. Nge2 {[%emt 0:00:06]} Re8 {[%emt 0:00:06]} 8. O-O {[%emt 0:00:29]} Bd6 {[%emt 0:02:47] 8...Bf8 is not played anymore.} 9. Bd2 {[%emt 0:00:51] E48: Nimzo-Indian: Rubinstein: 5 Bd3 d5 including 6 Ne2, but excluding 6 a3.} c6 {[%emt 0:00:22][%cal Bc7c6,Bc6c5,Bc5c4][%mdl 32]} 10. f3 {[%emt 0:07:29]} c5 {[%emt 0:09:58]} 11. Nb5 {[%emt 0:04:08]} c4 {[%emt 0:05:36]} 12. Nxd6 {[%emt 0:01:53]} Qxd6 {[%emt 0:00:07]} 13. Bc2 {[%emt 0:00:45] [#]} b5 $146 {[%emt 0:00:09][%cal Bb7b5,Bb5b4][%mdl 32]} ({Predecessor:} 13... Nc6 14. a4 b6 15. Ra3 Bd7 16. Be1 a6 17. Qd2 h6 18. Nc3 Rad8 19. Bh4 Bc8 {1-0 (47) Raupach,F (2280)-Soltau,A GER email 2009}) 14. Qe1 {[%emt 0:09:31]} Nc6 {[%emt 0:00:39]} 15. Rd1 {[%emt 0:05:05]} a5 {[%emt 0:02:36]} 16. Qh4 {[%emt 0:03:43]} b4 {[%emt 0:15:57]} 17. Bc1 {[%emt 0:07:35]} Ba6 {[%emt 0:04:38][%cal Oc4c3]} 18. Rfe1 {[%emt 0:11:35]} Ne7 {[%emt 0:00:54]} 19. Nf4 {[%emt 0:10:36]} Qb6 {[%emt 0:07:32]} 20. e4 {[%emt 0:01:57]} b3 {[%emt 0:00:21]} 21. axb3 {[%emt 0:01:23]} cxb3 {[%emt 0:00:06]} 22. Bb1 {[%emt 0:00:25]} Ng6 {[%emt 0:00:23] Inhibits e5.} (22... dxe4 $14 23. fxe4 Ng6 24. Nxg6 hxg6) 23. Qf2 {[%emt 0:04:42]} (23. Nxg6 $16 fxg6 24. e5) 23... Bc4 {[%emt 0:05:55]} (23... dxe4 $11 24. fxe4 Rac8) 24. e5 $16 {[%emt 0:03:52]} Nd7 {[%emt 0:02:11]} (24... Nxf4 $142 25. Bxf4 Nd7) 25. Nh5 {[%emt 0:03:03]} Ngf8 {[%emt 0:15:17]} 26. f4 {[%emt 0:05:52]} ({Weaker is} 26. Qg3 g6 $11) 26... g6 {[%emt 0:00:27]} 27. Ng3 {[%emt 0:00:46] f5 is the strong threat.} f6 {[%emt 0:03:17]} 28. exf6 {[%emt 0:00:59]} ({White should try} 28. Nf1 $18) 28... Qxf6 {[%emt 0:01:15]} 29. f5 {[%emt 0:00:35]} a4 {[%emt 0:01:01]} 30. Nf1 {[%emt 0:05:04]} Rxe1 {[%emt 0:08:17]} 31. Rxe1 {[%emt 0:00:05]} Bxf1 {[%emt 0:00:03]} 32. Rxf1 {[%emt 0:00:13]} g5 {[%emt 0:00:27]} 33. Qe3 {[%emt 0:04:59] Against Re8} h6 {[%emt 0:01:29]} 34. h4 {[%emt 0:01:18]} gxh4 {[%emt 0:01:09]} 35. Qxh6 {[%emt 0:01:40]} (35. Qf3 $16 Kh8 36. Qxd5) 35... Qxh6 $11 {[%emt 0:01:34]} 36. Bxh6 {[%emt 0:00:05]} a3 {[%emt 0:00:04]} 37. bxa3 {[%emt 0:00:22]} Rxa3 {[%emt 0:00:06]} 38. f6 {[%emt 0:03:44]} Kf7 {[%emt 0:00:37] Strongly threatening ...b2.} 39. Rf3 $1 {[%emt 0:01:49]} Ne6 {[%emt 0:00:58]} 40. Bc1 {[%emt 0:00:00] A strong pair of Bishops.} Ra1 {[%emt 0:00:00]} ({Don't take} 40... Nxd4 41. Bxa3 Nxf3+ 42. gxf3 $16) 41. Rxb3 {[%emt 0:01:15]} Nxd4 {[%emt 0:04:37]} 42. Rb2 {[%emt 0:02:28]} Nxf6 {[%emt 0:06:29][%cal Od4e2]} (42... Ne2+ $5 43. Rxe2 Rxb1 $15) 43. Kh2 {[%emt 0:01:21] The position is equal.} Ne4 {[%emt 0:02:12]} 44. Bxe4 {[%emt 0:04:37]} dxe4 {[%emt 0:00:04][%cal Bd5e4,Be4e3,Be3e2][%mdl 4128] Endgame KRB-KRN} 45. Bg5 {[%emt 0:00:46]} Nf5 {[%emt 0:02:25]} 46. Rb6 {[%emt 0:02:16] [#] And now Rf6+ would win.} Rf1 {[%emt 0:00:37]} 47. Rf6+ {[%emt 0:01:08]} Kg8 {[%emt 0:00:05]} 48. Bxh4 {[%emt 0:03:16]} e3 {[%emt 0:00:14]} 49. g4 {[%emt 0:00:52] [#]} Nxh4 {[%emt 0:00:35]} 50. Rxf1 {[%emt 0:00:04]} e2 {[%emt 0:00:04]} 51. Ra1 {[%emt 0:01:10] Black must now prevent Kg3.} Nf3+ {[%emt 0:00:07]} 52. Kg3 {[%emt 0:00:05] Black defended with fortune.  Weighted Error Value: White=0.11 (very precise) /Black=0.13 (very precise)} 1/2-1/2

[Event "2nd Serbia Open Masters 2022"]
[Site "Novi Sad"]
[Date "2022.06.28"]
[Round "1.41"]
[White "Ramoutar, Alan-Safar"]
[Black "Adarsh Tripathi"]
[Result "0-1"]
[ECO "B23"]
[WhiteElo "2477"]
[BlackElo "2179"]
[Annotator "TA"]
[PlyCount "104"]
[EventDate "2022.06.28"]
[EventType "swiss"]
[EventCountry "SRB"]
[SourceTitle "playchess.com"]
[Source "ChessBase"]
[SourceQuality "1"]
[TimeControl "40/5400+30:900+30"]

{[%evp 9,104,16,44,29,33,30,62,60,48,43,47,39,40,17,65,-23,-18,-108,-55,-100,-109,-108,-112,-146,-154,-148,-156,-147,-162,-153,-156,-157,-147,-147,-141,-141,-135,-145,-131,-137,-148,-158,-145,-168,-168,-192,-184,-188,-166,-238,-199,-304,-308,-344,-341,-403,-383,-370,-364,-406,-400,-429,-408,-408,-400,-391,-385,-391,-392,-396,-375,-525,-533,-543,-542,-670,-650,-1159,-1129,-1314,-1251,-1392,-1266,-1864,-1803,-2351,-2141,-2687,-2249,-2553,-2556,-2550,-2402,-1935,-1916,-2028,-1804]} 1. e4 {[%emt 0:00:06]} c5 {[%emt 0:00:17]} 2. Nc3 {[%emt 0:00:15]} Nc6 {[%emt 0:00:10]} 3. Bb5 {[%emt 0:00:11]} Nd4 {[%emt 0:00:14]} 4. Nf3 {[%emt 0:00:09]} Nxb5 {[%emt 0:00:36]} 5. Nxb5 {[%emt 0:00:10]} g6 {[%emt 0:00:11]} 6. d4 {[%emt 0:01:24] B23: Closed Sicilian: Lines without g3.} Bg7 {[%emt 0:00:07]} 7. e5 {[%emt 0:01:59] Inhibits Nf6.} Qa5+ {[%emt 0:01:11]} 8. Nc3 {[%emt 0:00:12] White is slightly better.} cxd4 {[%emt 0:00:07]} 9. Qxd4 {[%emt 0:00:13]} d6 {[%emt 0:00:29][%cal Rd6e5]} 10. Qd5 $1 {[%emt 0:01:39] [#]} Qb6 $146 {[%emt 0:04:19]} ({Predecessor:} 10... Qd8 11. exd6 exd6 12. Bf4 Be6 13. Qxd6 Qxd6 14. Bxd6 Nh6 15. Be5 f6 16. Bd4 O-O {1-0 (61) Janaszak,D (2348)-Lomaia,D (2111) Chess.com INT 2021}) 11. Qb5+ {[%emt 0:10:38]} (11. Ng5 $5 {[%cal Rd5f7]} Nh6 12. exd6 $14) 11... Qc6 {[%emt 0:00:07]} (11... Qxb5 12. Nxb5 Kd8 13. exd6 $16) (11... Bd7 $11 {should be considered.} 12. Qxb6 axb6) 12. Nd4 {[%emt 0:09:08]} ({White should play} 12. Qxc6+ $14 bxc6 13. exd6) 12... Qd7 $11 {[%emt 0:09:30]} ({Resist} 12... Qxb5 13. Ndxb5 Kf8 14. exd6 $16) 13. Nd5 {[%emt 0:09:42]} (13. Qxd7+ $11 {keeps the balance.} Bxd7 14. Ndb5) 13... Bxe5 {[%emt 0:02:32] White is on the road to losing.} (13... dxe5 $17 14. Nc7+ Kf8 15. Qxd7 (15. Nde6+ fxe6 16. Qxd7 Bxd7 $11) 15... Bxd7 16. Nde6+ fxe6 17. Nxa8 Nf6) 14. Nc7+ {[%emt 0:02:34]} Kd8 $1 {[%emt 0:00:11]} 15. Nxa8 {[%emt 0:02:20]} Bxd4 {[%emt 0:00:05]} 16. Qxd7+ {[%emt 0:01:38]} Bxd7 {[%emt 0:00:13]} 17. c3 {[%emt 0:00:17]} Bg7 {[%emt 0:01:02] Black is more active. This bishop pair is nice.} 18. Be3 {[%emt 0:04:19]} b6 $1 {[%emt 0:01:21]} 19. Nxb6 {[%emt 0:06:19]} axb6 {[%emt 0:00:06]} 20. Bxb6+ {[%emt 0:00:05] [#]} Kc8 $1 {[%emt 0:00:06]} 21. O-O {[%emt 0:01:53]} Nf6 {[%emt 0:00:14]} 22. Rfd1 {[%emt 0:11:00]} Kb7 {[%emt 0:00:59]} 23. Bd4 {[%emt 0:00:27]} e5 {[%emt 0:04:41]} 24. Be3 {[%emt 0:00:07]} d5 {[%emt 0:00:08]} 25. a4 {[%emt 0:04:52]} Ra8 {[%emt 0:00:33]} 26. a5 {[%emt 0:03:18]} Bb5 {[%emt 0:00:25]} 27. h3 {[%emt 0:04:57]} Kc6 {[%emt 0:03:15]} 28. b3 {[%emt 0:00:28] [#]} Ba6 $1 {[%emt 0:01:31] Prevents c4.} 29. Rdc1 {[%emt 0:02:41]} (29. f4 {is a better defense.}) 29... Nd7 {[%emt 0:00:10]} 30. c4 {[%emt 0:01:36]} (30. Ra4 $142) 30... d4 $19 {[%emt 0:00:42]} 31. Bd2 {[%emt 0:01:17]} Nc5 {[%emt 0:00:23]} 32. b4 {[%emt 0:13:43]} Nb3 $1 {[%emt 0:00:05][%csl LRa1,LRc1,LRd2]} 33. b5+ {[%emt 0:00:06]} Kc7 {[%emt 0:00:04]} 34. bxa6 {[%emt 0:00:40][%cal Oa1b1]} Nxd2 {[%emt 0:00:05]} 35. Ra2 {[%emt 0:02:16]} Ne4 {[%emt 0:00:19]} 36. Rb1 {[%emt 0:02:08]} Rxa6 {[%emt 0:00:07] Strongly threatening ...Nc3.} 37. Rab2 {[%emt 0:00:50]} Nc5 {[%emt 0:00:46] Prevents Rb7+.} 38. Rb5 {[%emt 0:00:46]} Bf8 {[%emt 0:00:06]} 39. Rb8 {[%emt 0:01:14]} Nd7 {[%emt 0:03:21]} 40. R8b5 {[%emt 0:00:00]} Bc5 {[%emt 0:00:00] Black is clearly winning.} 41. Kf1 {[%emt 0:02:56]} f5 {[%emt 0:00:44]} 42. Rb7+ {[%emt 0:00:21]} Kc6 {[%emt 0:00:14]} 43. R1b5 {[%emt 0:01:00][%cal Ob7d7] [#]} Rxa5 $3 {[%emt 0:00:32][%mdl 512]} 44. Rxa5 {[%emt 0:07:57]} (44. Rb1 Ra4) 44... Kxb7 {[%emt 0:00:07]} 45. Ke2 {[%emt 0:00:19]} e4 {[%emt 0:00:05] Threatens to win with ...d3+.} 46. Rb5+ {[%emt 0:00:45]} Kc6 {[%emt 0:00:04]} 47. Rb3 {[%emt 0:02:42]} d3+ {[%emt 0:00:14]} 48. Ke1 {[%emt 0:00:14]} Ne5 {[%emt 0:00:04]} 49. Rb8 {[%emt 0:00:31]} Nxc4 {[%emt 0:00:05]} 50. Rc8+ {[%emt 0:03:25]} Kd5 {[%emt 0:00:21] And now ...Bb4+ would win.} 51. Rd8+ {[%emt 0:00:15]} Ke5 {[%emt 0:00:07] aiming for ...Bb4+.} 52. Rd7 {[%emt 0:00:13]} Bb4+ {[%emt 1:28:05] Weighted Error Value: White=0.64/Black=0.05 (flawless)} 0-1

[Event "2nd Serbia Open Masters 2022"]
[Site "Novi Sad"]
[Date "2022.06.28"]
[Round "1.42"]
[White "Gavrilov, Maxim"]
[Black "Raja Harshit"]
[Result "1-0"]
[ECO "E21"]
[WhiteElo "2120"]
[BlackElo "2479"]
[Annotator "TA"]
[PlyCount "105"]
[EventDate "2022.06.28"]
[EventType "swiss"]
[EventCountry "SRB"]
[SourceTitle "playchess.com"]
[Source "ChessBase"]
[SourceQuality "1"]
[TimeControl "40/5400+30:900+30"]

{[%evp 10,105,33,25,30,9,34,46,41,27,41,32,51,0,9,8,66,60,76,68,78,77,89,30,33,30,25,30,31,26,33,33,32,27,27,31,42,45,107,98,100,100,91,98,111,90,100,101,95,74,68,77,142,132,139,138,132,135,135,136,172,161,154,154,164,164,168,173,218,218,269,281,325,324,881,875,888,581,581,581,1676,1684,1899,1709,1891,1868,1779,1573,1280,898,842,837,722,697,29978,29978,29971,4692]} 1. d4 {[%emt 0:08:36]} Nf6 {[%emt 0:00:10]} 2. c4 {[%emt 0:00:23]} e6 {[%emt 0:00:14]} 3. Nc3 {[%emt 0:00:06]} Bb4 {[%emt 0:00:06]} 4. Nf3 {[%emt 0:00:04]} O-O {[%emt 0:00:17]} 5. Bg5 {[%emt 0:00:25]} c5 {[%emt 0:00:07]} 6. Rc1 {[%emt 0:00:06]} h6 {[%emt 0:04:36] E21: Nimzo-Indian: 4 Nf3.} 7. Bh4 {[%emt 0:00:09]} d5 {[%emt 0:02:08]} 8. cxd5 {[%emt 0:03:36]} exd5 {[%emt 0:00:51] White is slightly better.} 9. dxc5 {[%emt 0:02:25]} g5 {[%emt 0:02:42]} 10. Bg3 {[%emt 0:03:16]} Ne4 {[%emt 0:01:50] [#] Against Bd6} 11. Bd6 $146 {[%emt 0:13:29]} (11. e3 $1 $14) ({Predecessor:} 11. e3 Qa5 12. Be5 Qxa2 13. Bd3 Qxb2 14. Bxe4 dxe4 15. Rc2 Qb3 16. Nd2 Qe6 17. Bd6 {0-1 (23) Ponomariov,R (2737)-Kramnik,V (2790) Nice 2010}) 11... Re8 {[%emt 0:06:29]} 12. e3 {[%emt 0:18:20]} Qf6 {[%emt 0:04:20]} (12... Nc6 $11) 13. Qd4 $14 {[%emt 0:04:11]} (13. Qxd5 $6 g4 14. Bd3 Nxd6 $11) 13... Bxc3+ {[%emt 0:03:21]} 14. bxc3 {[%emt 0:02:10]} Qf5 {[%emt 0:00:05]} 15. Bxb8 {[%emt 0:07:21] White is more active.} Rxb8 {[%emt 0:00:06]} 16. Bb5 {[%emt 0:00:12]} ({White should try} 16. h3 $16) 16... Bd7 $11 {[%emt 0:05:03]} 17. Bxd7 {[%emt 0:00:26]} Qxd7 {[%emt 0:00:06]} 18. c4 {[%emt 0:03:26]} Rbd8 {[%emt 0:01:04]} 19. O-O {[%emt 0:11:22]} dxc4 {[%emt 0:01:52]} 20. Qxd7 {[%emt 0:01:11]} Rxd7 {[%emt 0:00:05]} 21. Rxc4 {[%emt 0:00:23]} g4 $1 {[%emt 0:07:26]} 22. Nh4 {[%emt 0:00:44]} h5 {[%emt 0:01:13]} 23. c6 {[%emt 0:06:38]} Rc7 {[%emt 0:02:35]} ({Better is} 23... bxc6 $14 24. Rxc6 Rd5) 24. Rfc1 $16 {[%emt 0:00:15]} Rxc6 {[%emt 0:00:18]} 25. Rxc6 {[%emt 0:00:04]} bxc6 {[%emt 0:00:02][%mdl 4096] Endgame KRN-KRN} 26. f3 $1 {[%emt 0:02:31]} (26. Rxc6 Rb8 27. Rc1 Nc3 $11) 26... Ng5 {[%emt 0:01:38]} 27. Rc5 {[%emt 0:04:31]} (27. Rxc6 $6 gxf3 28. gxf3 Rxe3 $11) 27... f6 {[%emt 0:01:38]} 28. Rxc6 {[%emt 0:00:18]} gxf3 {[%emt 0:02:45]} 29. gxf3 {[%emt 0:00:14]} (29. Rxf6 {seems wilder.} f2+ 30. Kf1 Ne4 31. Rf4) 29... Rxe3 {[%emt 0:02:01]} 30. Rxf6 {[%emt 0:00:34]} Nf7 {[%emt 0:02:55]} (30... Kh7 $142) 31. Rg6+ {[%emt 0:02:00]} Kf8 {[%emt 0:01:04]} 32. Ra6 {[%emt 0:00:47] Against Ra3} Re2 {[%emt 0:00:30]} 33. Ng6+ {[%emt 0:01:08]} Kg8 {[%emt 0:03:13]} 34. Nf4 {[%emt 0:00:23]} Rc2 {[%emt 0:00:22]} 35. Nxh5 {[%emt 0:01:25]} ({Don't take} 35. Rxa7 $6 Ng5 $14) 35... Ne5 {[%emt 0:00:29]} 36. Ra3 {[%emt 0:00:17]} ({Don't do} 36. Rxa7 $6 Nxf3+ 37. Kf1 Rd2 $14) 36... a5 {[%emt 0:01:16]} 37. Nf6+ {[%emt 0:01:39]} ({Resist} 37. Rxa5 $6 Nxf3+ 38. Kf1 Rd2 $14) 37... Kf7 {[%emt 0:00:31] [#] And now ...Nc4 would win.} 38. Ng4 $1 {[%emt 0:00:16]} Nc4 {[%emt 0:01:21]} 39. Ra4 {[%emt 0:01:29][%cal Oa4c4] Threatens to win with Rxc4!} Ke6 {[%emt 0:05:38]} 40. h4 {[%emt 0:00:00][%cal Bh2h4,Bh4h5,Bh5h6,Bh6h7][%mdl 32]} Kd6 {[%emt 0:00:00]} 41. h5 {[%emt 0:08:43] h6 is the strong threat.} Kc5 $2 {[%emt 0:08:27]} (41... Ke7 42. f4 Kf8) 42. h6 $18 {[%emt 0:00:15]} Rd2 {[%emt 0:04:42]} 43. f4 {[%emt 0:05:39]} Rd8 {[%emt 0:09:21] aiming for ...Rg8.} 44. Ne5 {[%emt 0:00:42]} Rd1+ {[%emt 0:02:13]} 45. Kh2 {[%emt 0:00:24]} Rd2+ {[%emt 0:00:35]} 46. Kh3 {[%emt 0:00:11]} Ne3 {[%emt 0:00:55]} 47. h7 {[%emt 0:00:36]} Rd1 {[%emt 0:00:17]} 48. Rxa5+ {[%emt 0:01:11]} Kb6 {[%emt 0:00:28]} 49. Ra3 {[%emt 0:01:52]} Rh1+ {[%emt 0:00:27]} 50. Kg3 {[%emt 0:00:03]} Nd5 {[%emt 0:00:56]} 51. Rd3 {[%emt 0:00:24]} Kc5 {[%emt 0:00:21] [#]} 52. Rxd5+ $1 {[%emt 0:00:50]} Kxd5 {[%emt 0:00:12] [#]} 53. Ng4 $1 {[%emt 0:04:20] Weighted Error Value: White=0.11 (very precise) /Black=0.18 (very precise)} 1-0